[Event "*** Titled Tuesday Blitz"]
[Site "Chess.com"]
[Date "2021.03.02"]
[Round "7"]
[White "miredenizdogan"]
[Black "ama18"]
[Result "0-1"]
[WhiteElo "2299"]
[BlackElo "2469"]
[TimeControl "180+1"]
[EndTime "11:19:09 PST"]
[Termination "ama18 won by resignation"]

1. d4 {[%clk 0:03:00.9]} 1... Nf6 {[%clk 0:02:58.8]} 2. c4 {[%clk 0:02:59.3]}
2... e6 {[%clk 0:02:59.3]} 3. Nc3 {[%clk 0:02:59.7]} 3... Bb4 {[%clk 0:02:59.9]}
4. e3 {[%clk 0:02:58.1]} 4... c5 {[%clk 0:02:55.1]} 5. Ne2 {[%clk 0:02:57.7]}
5... O-O {[%clk 0:02:50.9]} 6. a3 {[%clk 0:02:55.8]} 6... Bxc3+ {[%clk
0:02:49.2]} 7. Nxc3 {[%clk 0:02:56.7]} 7... cxd4 {[%clk 0:02:49.2]} 8. exd4
{[%clk 0:02:56.7]} 8... d5 {[%clk 0:02:49.5]} 9. Bg5 {[%clk 0:02:53.3]} 9... h6
{[%clk 0:02:48.2]} 10. Bh4 {[%clk 0:02:52.9]} 10... dxc4 {[%clk 0:02:48.2]} 11.
Bxc4 {[%clk 0:02:51.6]} 11... b6 {[%clk 0:02:46.7]} 12. O-O {[%clk 0:02:45.9]}
12... Bb7 {[%clk 0:02:46.2]} 13. d5 {[%clk 0:02:42.3]} 13... g5 {[%clk
0:02:43.4]} 14. Bg3 {[%clk 0:02:18.9]} 14... Nxd5 {[%clk 0:02:40.2]} 15. Nxd5
{[%clk 0:02:12.6]} 15... Bxd5 {[%clk 0:02:40]} 16. Bxd5 {[%clk 0:02:12.5]} 16...
Qxd5 {[%clk 0:02:40.9]} 17. Qh5 {[%clk 0:02:10.2]} 17... Kg7 {[%clk 0:02:36.3]}
18. Rad1 {[%clk 0:02:07.1]} 18... Qf5 {[%clk 0:02:35.4]} 19. Bd6 {[%clk
0:01:52.8]} 19... Re8 {[%clk 0:02:30.6]} 20. g4 {[%clk 0:01:33.4]} 20... Qg6
{[%clk 0:02:28.7]} 21. Qh3 {[%clk 0:01:33.5]} 21... Nd7 {[%clk 0:02:27.6]} 22.
Qc3+ {[%clk 0:01:24.7]} 22... Kh7 {[%clk 0:02:23.4]} 23. f4 {[%clk 0:01:09.3]}
23... Rac8 {[%clk 0:01:49.1]} 24. Qh3 {[%clk 0:00:56.1]} 24... gxf4 {[%clk
0:01:41.6]} 25. Bxf4 {[%clk 0:00:53.6]} 25... Nf6 {[%clk 0:01:40]} 26. Bxh6
{[%clk 0:00:32.8]} 26... Qxg4+ {[%clk 0:01:25.8]} 27. Qxg4 {[%clk 0:00:32.5]}
27... Nxg4 {[%clk 0:01:26.7]} 28. Bd2 {[%clk 0:00:27.7]} 28... f5 {[%clk
0:01:22.3]} 29. h3 {[%clk 0:00:27]} 29... Nf6 {[%clk 0:01:17.4]} 30. Bc3 {[%clk
0:00:27]} 30... Nd5 {[%clk 0:01:15.5]} 31. Be5 {[%clk 0:00:25.1]} 31... Rg8+
{[%clk 0:01:11.7]} 32. Kh1 {[%clk 0:00:24]} 32... Rc2 {[%clk 0:01:12.2]} 33. Rg1
{[%clk 0:00:21.3]} 33... Rcc8 {[%clk 0:00:48.2]} 34. Rxg8 {[%clk 0:00:17.6]}
34... Rxg8 {[%clk 0:00:49.1]} 35. Rc1 {[%clk 0:00:18.4]} 35... Kg6 {[%clk
0:00:42.7]} 36. Rc6 {[%clk 0:00:17.8]} 36... Re8 {[%clk 0:00:43]} 37. a4 {[%clk
0:00:16.9]} 37... f4 {[%clk 0:00:43.3]} 38. Kg2 {[%clk 0:00:16.7]} 38... Kf5
{[%clk 0:00:43.3]} 39. Bd4 {[%clk 0:00:15.9]} 39... e5 {[%clk 0:00:43.2]} 40.
Bg1 {[%clk 0:00:16.2]} 40... e4 {[%clk 0:00:42.1]} 41. Rd6 {[%clk 0:00:16.8]}
41... Ke5 {[%clk 0:00:41.7]} 42. Rd7 {[%clk 0:00:16.4]} 42... Re7 {[%clk
0:00:40]} 43. Rd8 {[%clk 0:00:14.3]} 43... Rg7+ {[%clk 0:00:35.9]} 44. Kf1
{[%clk 0:00:14.1]} 44... e3 {[%clk 0:00:34.3]} 45. Bh2 {[%clk 0:00:14.4]} 45...
Ke4 {[%clk 0:00:33.1]} 46. Re8+ {[%clk 0:00:13.6]} 46... Re7 {[%clk 0:00:32.8]}
47. Rd8 {[%clk 0:00:12.1]} 47... f3 {[%clk 0:00:32.5]} 48. Bg3 {[%clk
0:00:12.4]} 48... Rg7 {[%clk 0:00:30.7]} 49. Re8+ {[%clk 0:00:11.6]} 49... Kd3
{[%clk 0:00:29.6]} 50. Bh4 {[%clk 0:00:11.5]} 50... Rg2 {[%clk 0:00:23.9]} 51.
Rd8 {[%clk 0:00:11.1]} 51... e2+ {[%clk 0:00:22.9]} 52. Ke1 {[%clk 0:00:11.3]}
52... Rg1+ {[%clk 0:00:23.1]} 53. Kf2 {[%clk 0:00:10]} 53... e1=Q+ {[%clk
0:00:23.1]} 0-1

[Event "*** Titled Tuesday Blitz"]
[Site "Chess.com"]
[Date "2021.03.02"]
[Round "7"]
[White "andy_rekt"]
[Black "Azde"]
[Result "0-1"]
[WhiteElo "2270"]
[BlackElo "2435"]
[TimeControl "180+1"]
[EndTime "11:19:09 PST"]
[Termination "Azde won by resignation"]

1. d4 {[%clk 0:03:00.9]} 1... Nf6 {[%clk 0:02:58.9]} 2. c4 {[%clk 0:03:01]} 2...
e6 {[%clk 0:02:59.3]} 3. Nc3 {[%clk 0:03:01.3]} 3... Bb4 {[%clk 0:02:59.4]} 4.
e3 {[%clk 0:03:01.7]} 4... b6 {[%clk 0:02:58.6]} 5. Ne2 {[%clk 0:03:01.9]} 5...
Bb7 {[%clk 0:02:58.2]} 6. a3 {[%clk 0:03:02.6]} 6... Bd6 {[%clk 0:02:56.3]} 7.
d5 {[%clk 0:02:57.4]} 7... O-O {[%clk 0:02:54.9]} 8. e4 {[%clk 0:02:53.5]} 8...
a5 {[%clk 0:02:54.5]} 9. g3 {[%clk 0:02:52.6]} 9... Na6 {[%clk 0:02:52]} 10. Bg2
{[%clk 0:02:50.9]} 10... Nc5 {[%clk 0:02:50]} 11. O-O {[%clk 0:02:42.4]} 11...
a4 {[%clk 0:02:49.7]} 12. Be3 {[%clk 0:02:40.4]} 12... exd5 {[%clk 0:02:49]} 13.
exd5 {[%clk 0:02:39.8]} 13... Re8 {[%clk 0:02:46.9]} 14. Nd4 {[%clk 0:02:39.6]}
14... Ba6 {[%clk 0:02:41.2]} 15. Ncb5 {[%clk 0:02:38.5]} 15... Bxb5 {[%clk
0:02:40.3]} 16. Nxb5 {[%clk 0:02:36.6]} 16... h6 {[%clk 0:02:35.9]} 17. Nxd6
{[%clk 0:02:36.1]} 17... cxd6 {[%clk 0:02:36.8]} 18. Qc2 {[%clk 0:02:25.2]}
18... Qc7 {[%clk 0:02:32.8]} 19. Rae1 {[%clk 0:02:24.9]} 19... Ng4 {[%clk
0:02:31.8]} 20. Bd4 {[%clk 0:02:22.4]} 20... Ne5 {[%clk 0:02:31.4]} 21. f4
{[%clk 0:02:18.9]} 21... Nb3 {[%clk 0:02:14.8]} 22. Bxe5 {[%clk 0:01:40.9]}
22... dxe5 {[%clk 0:02:14]} 23. fxe5 {[%clk 0:01:32.7]} 23... Rxe5 {[%clk
0:02:11.5]} 24. Rxe5 {[%clk 0:01:10.9]} 24... Qxe5 {[%clk 0:02:12.4]} 25. Qf2
{[%clk 0:01:06.8]} 25... Rf8 {[%clk 0:01:59.9]} 26. Qxb6 {[%clk 0:01:04.4]}
26... Qxb2 {[%clk 0:01:59.7]} 27. Bh3 {[%clk 0:00:59.1]} 27... Qe2 {[%clk
0:01:48.1]} 28. Bxd7 {[%clk 0:00:49.8]} 28... Qxc4 {[%clk 0:01:47.8]} 29. Bc6
{[%clk 0:00:25.5]} 29... Nd4 {[%clk 0:01:46.3]} 30. Qb4 {[%clk 0:00:19.6]} 30...
Qd3 {[%clk 0:01:33]} 31. Bxa4 {[%clk 0:00:18.2]} 31... Qe3+ {[%clk 0:01:32.3]}
32. Rf2 {[%clk 0:00:17.1]} 32... Nf3+ {[%clk 0:01:23.1]} 33. Kg2 {[%clk
0:00:17]} 33... Ne1+ {[%clk 0:01:21.4]} 34. Kf1 {[%clk 0:00:17.2]} 34... Qxf2+
{[%clk 0:00:51.2]} 35. Kxf2 {[%clk 0:00:15.3]} 35... Nd3+ {[%clk 0:00:52.1]} 36.
Ke3 {[%clk 0:00:15.5]} 36... Nxb4 {[%clk 0:00:53]} 37. axb4 {[%clk 0:00:15.9]}
37... Rb8 {[%clk 0:00:53.9]} 38. b5 {[%clk 0:00:14.9]} 38... Kf8 {[%clk
0:00:53.5]} 39. Kd4 {[%clk 0:00:13.6]} 39... Ke7 {[%clk 0:00:54]} 40. Kc5 {[%clk
0:00:07.7]} 40... Rc8+ {[%clk 0:00:48.1]} 41. Kd4 {[%clk 0:00:07.8]} 41... Kd6
{[%clk 0:00:47.3]} 42. b6 {[%clk 0:00:08]} 42... Rb8 {[%clk 0:00:47.2]} 43. Bc6
{[%clk 0:00:02.1]} 43... Rxb6 {[%clk 0:00:47.2]} 44. Ke4 {[%clk 0:00:02.5]}
44... Rb2 {[%clk 0:00:47]} 45. h4 {[%clk 0:00:01.7]} 45... Rb3 {[%clk
0:00:46.2]} 46. Kf4 {[%clk 0:00:02.3]} 46... Rd3 {[%clk 0:00:45.5]} 47. Kg4
{[%clk 0:00:01.8]} 47... Ke5 {[%clk 0:00:44.7]} 48. Kh3 {[%clk 0:00:01.4]} 48...
f5 {[%clk 0:00:43.9]} 49. h5 {[%clk 0:00:01.4]} 49... Rd4 {[%clk 0:00:42]} 50.
Kg2 {[%clk 0:00:02]} 50... Kf6 {[%clk 0:00:41.8]} 51. Kf3 {[%clk 0:00:02.5]}
51... Kg5 {[%clk 0:00:41.8]} 52. Ke3 {[%clk 0:00:03.1]} 52... Rd1 {[%clk
0:00:41.8]} 53. Kf3 {[%clk 0:00:02.6]} 53... Kxh5 {[%clk 0:00:39.9]} 54. Be8+
{[%clk 0:00:03]} 54... Kg5 {[%clk 0:00:40.2]} 55. Bf7 {[%clk 0:00:03.2]} 55...
Kf6 {[%clk 0:00:39.5]} 56. Be6 {[%clk 0:00:03.4]} 56... g5 {[%clk 0:00:39.4]}
57. Ke3 {[%clk 0:00:03.3]} 57... Ke5 {[%clk 0:00:38.9]} 58. Ke2 {[%clk
0:00:03.5]} 58... Rxd5 {[%clk 0:00:38.9]} 59. Bxd5 {[%clk 0:00:03.5]} 59... Kxd5
{[%clk 0:00:39.8]} 60. Kf3 {[%clk 0:00:04]} 60... h5 {[%clk 0:00:39.9]} 61. Ke3
{[%clk 0:00:04]} 61... Ke5 {[%clk 0:00:40.2]} 62. Kf3 {[%clk 0:00:04.3]} 62...
Kd4 {[%clk 0:00:38]} 0-1

[Event "*** Titled Tuesday Blitz"]
[Site "Chess.com"]
[Date "2021.03.02"]
[Round "7"]
[White "masrahi"]
[Black "BvsN"]
[Result "1/2-1/2"]
[WhiteElo "2221"]
[BlackElo "2292"]
[TimeControl "180+1"]
[EndTime "11:19:11 PST"]
[Termination "Game drawn by repetition"]

1. d4 {[%clk 0:03:00.9]} 1... d5 {[%clk 0:02:59.8]} 2. Bf4 {[%clk 0:03:00.2]}
2... c5 {[%clk 0:02:59.6]} 3. e3 {[%clk 0:03:00.5]} 3... Nc6 {[%clk 0:02:59.3]}
4. c3 {[%clk 0:03:00.6]} 4... Nf6 {[%clk 0:02:55.3]} 5. Nd2 {[%clk 0:02:59.8]}
5... Bf5 {[%clk 0:02:55.2]} 6. Qb3 {[%clk 0:02:58.4]} 6... Qd7 {[%clk
0:02:53.6]} 7. Ngf3 {[%clk 0:02:56.4]} 7... c4 {[%clk 0:02:53.7]} 8. Qd1 {[%clk
0:02:56]} 8... e6 {[%clk 0:02:49.8]} 9. Nh4 {[%clk 0:02:51.5]} 9... Be4 {[%clk
0:02:38.6]} 10. f3 {[%clk 0:02:46.7]} 10... Bd3 {[%clk 0:02:35]} 11. Bxd3 {[%clk
0:02:41.7]} 11... cxd3 {[%clk 0:02:35.3]} 12. g4 {[%clk 0:02:32.4]} 12... Bd6
{[%clk 0:02:22.8]} 13. Bxd6 {[%clk 0:02:23.4]} 13... Qxd6 {[%clk 0:02:23.2]} 14.
f4 {[%clk 0:02:22.5]} 14... Ne4 {[%clk 0:02:18.3]} 15. Nhf3 {[%clk 0:02:11.3]}
15... h5 {[%clk 0:02:07.9]} 16. gxh5 {[%clk 0:01:59.3]} 16... Rxh5 {[%clk
0:01:59.1]} 17. Ng5 {[%clk 0:01:57.6]} 17... Rh6 {[%clk 0:01:31.8]} 18. Ngxe4
{[%clk 0:01:56.8]} 18... dxe4 {[%clk 0:01:31.3]} 19. Nxe4 {[%clk 0:01:57]} 19...
Qd5 {[%clk 0:01:25.4]} 20. Qxd3 {[%clk 0:01:49.7]} 20... O-O-O {[%clk
0:01:17.1]} 21. O-O-O {[%clk 0:01:47.7]} 21... Qxa2 {[%clk 0:01:14.5]} 22. Nc5
{[%clk 0:01:25.7]} 22... Na5 {[%clk 0:00:57.8]} 23. h4 {[%clk 0:00:58.1]} 23...
Kb8 {[%clk 0:00:55.2]} 24. Qb5 {[%clk 0:00:57.2]} 24... e5 {[%clk 0:00:45.6]}
25. Nd7+ {[%clk 0:00:48.7]} 25... Ka8 {[%clk 0:00:29]} 26. dxe5 {[%clk
0:00:48.3]} 26... a6 {[%clk 0:00:18.6]} 27. Nb6+ {[%clk 0:00:43.7]} 27... Ka7
{[%clk 0:00:15.7]} 28. Rxd8 {[%clk 0:00:27.4]} 28... Rxb6 {[%clk 0:00:12.4]} 29.
Ra8+ {[%clk 0:00:24.1]} 29... Kxa8 {[%clk 0:00:11.9]} 30. Qxb6 {[%clk
0:00:24.3]} 30... Qa1+ {[%clk 0:00:12]} 31. Kc2 {[%clk 0:00:24.6]} 31... Qxh1
{[%clk 0:00:12.4]} 32. Qxa5 {[%clk 0:00:21.1]} 32... Qxh4 {[%clk 0:00:12.5]} 33.
Qc5 {[%clk 0:00:16.4]} 33... Qf2+ {[%clk 0:00:12.1]} 34. Kb3 {[%clk 0:00:15.8]}
34... Qe2 {[%clk 0:00:10.5]} 35. Qd4 {[%clk 0:00:15.1]} 35... Qb5+ {[%clk
0:00:09.8]} 36. Kc2 {[%clk 0:00:14.7]} 36... Qe2+ {[%clk 0:00:10]} 37. Qd2
{[%clk 0:00:13.9]} 37... Qf1 {[%clk 0:00:10.4]} 38. Qd4 {[%clk 0:00:13.5]} 38...
Qe2+ {[%clk 0:00:10.3]} 39. Kb3 {[%clk 0:00:13.6]} 39... Qb5+ {[%clk 0:00:10.3]}
40. Qb4 {[%clk 0:00:11.7]} 40... Qd5+ {[%clk 0:00:10.1]} 41. Qc4 {[%clk
0:00:11.8]} 41... Qd1+ {[%clk 0:00:09.9]} 42. Ka2 {[%clk 0:00:11]} 42... Qf3
{[%clk 0:00:07.8]} 43. Qxf7 {[%clk 0:00:09.6]} 43... Qxe3 {[%clk 0:00:07.4]} 44.
Qxg7 {[%clk 0:00:09.1]} 44... Qc5 {[%clk 0:00:06.7]} 45. Qf7 {[%clk 0:00:08]}
45... Qa5+ {[%clk 0:00:06.8]} 46. Kb1 {[%clk 0:00:07.7]} 46... Qb5 {[%clk
0:00:06.9]} 47. Kc2 {[%clk 0:00:07.5]} 47... Qe2+ {[%clk 0:00:06.9]} 48. Kb3
{[%clk 0:00:07.1]} 48... Qb5+ {[%clk 0:00:07.2]} 49. Kc2 {[%clk 0:00:07.1]}
49... Qe2+ {[%clk 0:00:07.4]} 50. Kc1 {[%clk 0:00:07]} 50... Qe1+ {[%clk
0:00:07.1]} 51. Kc2 {[%clk 0:00:07.4]} 51... Qe2+ {[%clk 0:00:07.6]} 1/2-1/2

[Event "*** Titled Tuesday Blitz"]
[Site "Chess.com"]
[Date "2021.03.02"]
[Round "7"]
[White "DenishevM"]
[Black "jerry_77"]
[Result "1-0"]
[WhiteElo "2634"]
[BlackElo "2478"]
[TimeControl "180+1"]
[EndTime "11:19:12 PST"]
[Termination "DenishevM won by checkmate"]

1. d4 {[%clk 0:03:00.9]} 1... Nf6 {[%clk 0:02:59.9]} 2. c4 {[%clk 0:03:00.6]}
2... e6 {[%clk 0:03:00.5]} 3. Nf3 {[%clk 0:03:00.4]} 3... d5 {[%clk 0:03:00.7]}
4. Nc3 {[%clk 0:02:59.9]} 4... Bb4 {[%clk 0:03:00.3]} 5. Bg5 {[%clk 0:02:59.4]}
5... h6 {[%clk 0:03:00]} 6. Bxf6 {[%clk 0:02:59.5]} 6... Qxf6 {[%clk 0:03:00.9]}
7. e3 {[%clk 0:02:58.3]} 7... O-O {[%clk 0:03:00.8]} 8. Qc2 {[%clk 0:02:58.3]}
8... c6 {[%clk 0:02:59.5]} 9. Bd3 {[%clk 0:02:57.6]} 9... Re8 {[%clk 0:02:58.3]}
10. O-O {[%clk 0:02:57.3]} 10... Nd7 {[%clk 0:02:57.8]} 11. e4 {[%clk
0:02:49.7]} 11... Bxc3 {[%clk 0:02:45.6]} 12. Qxc3 {[%clk 0:02:46.1]} 12... dxe4
{[%clk 0:02:35.5]} 13. Bxe4 {[%clk 0:02:47]} 13... e5 {[%clk 0:02:33.2]} 14.
Rfe1 {[%clk 0:02:32.8]} 14... exd4 {[%clk 0:02:23.5]} 15. Bh7+ {[%clk
0:02:32.4]} 15... Kf8 {[%clk 0:02:23.5]} 16. Qa3+ {[%clk 0:01:56.9]} 16... c5
{[%clk 0:02:19.1]} 17. Be4 {[%clk 0:01:50.6]} 17... Qd6 {[%clk 0:02:10.9]} 18.
Rad1 {[%clk 0:01:44.4]} 18... Nf6 {[%clk 0:01:23.4]} 19. Rxd4 {[%clk 0:01:04.8]}
19... Qe7 {[%clk 0:01:21.2]} 20. Bd3 {[%clk 0:01:03.9]} 20... Qxe1+ {[%clk
0:01:00]} 21. Nxe1 {[%clk 0:01:04.1]} 21... Rxe1+ {[%clk 0:01:00.7]} 22. Bf1
{[%clk 0:01:04.8]} 22... b6 {[%clk 0:00:57.5]} 23. Rd8+ {[%clk 0:00:57.8]} 23...
Re8 {[%clk 0:00:55.9]} 24. Rxe8+ {[%clk 0:00:55.5]} 24... Kxe8 {[%clk
0:00:56.8]} 25. Qf3 {[%clk 0:00:51.9]} 25... Rb8 {[%clk 0:00:53.8]} 26. Qg3
{[%clk 0:00:52.2]} 26... Rb7 {[%clk 0:00:51.1]} 27. Qxg7 {[%clk 0:00:52]} 27...
Ke7 {[%clk 0:00:48.3]} 28. Qxh6 {[%clk 0:00:50.2]} 28... Be6 {[%clk 0:00:48.3]}
29. Qg5 {[%clk 0:00:45.9]} 29... Rd7 {[%clk 0:00:47.8]} 30. h4 {[%clk
0:00:45.7]} 30... Rd1 {[%clk 0:00:47.4]} 31. b3 {[%clk 0:00:40.9]} 31... Bg4
{[%clk 0:00:30.9]} 32. Qe5+ {[%clk 0:00:35.1]} 32... Be6 {[%clk 0:00:29.4]} 33.
h5 {[%clk 0:00:35.1]} 33... Ng4 {[%clk 0:00:19.9]} 34. Qg5+ {[%clk 0:00:31.2]}
34... Nf6 {[%clk 0:00:13.1]} 35. h6 {[%clk 0:00:30.3]} 35... Rd8 {[%clk
0:00:12.9]} 36. h7 {[%clk 0:00:25.5]} 36... Rh8 {[%clk 0:00:12.7]} 37. Bd3
{[%clk 0:00:25.7]} 37... Rd8 {[%clk 0:00:01.9]} 38. g3 {[%clk 0:00:15.1]} 38...
Rxd3 {[%clk 0:00:01.8]} 39. h8=Q {[%clk 0:00:15.4]} 39... Rd1+ {[%clk
0:00:01.9]} 40. Kg2 {[%clk 0:00:15]} 40... Bh3+ {[%clk 0:00:02.2]} 41. Qxh3
{[%clk 0:00:13.3]} 41... Rd6 {[%clk 0:00:02.9]} 42. Qh8 {[%clk 0:00:12.6]} 42...
Re6 {[%clk 0:00:03.1]} 43. Qb8 {[%clk 0:00:11.4]} 43... Kd7 {[%clk 0:00:02.8]}
44. Qxa7+ {[%clk 0:00:11.3]} 44... Ke8 {[%clk 0:00:03]} 45. Qb8+ {[%clk
0:00:11]} 45... Kd7 {[%clk 0:00:03.6]} 46. Qb7+ {[%clk 0:00:11.3]} 46... Ke8
{[%clk 0:00:04.1]} 47. Qg7 {[%clk 0:00:10.5]} 47... Nd7 {[%clk 0:00:04.4]} 48.
Qg8+ {[%clk 0:00:09.3]} 48... Ke7 {[%clk 0:00:05]} 49. Qbc8 {[%clk 0:00:09.4]}
49... Nf6 {[%clk 0:00:04.5]} 50. Qgd8# {[%clk 0:00:09.1]} 1-0

[Event "*** Titled Tuesday Blitz"]
[Site "Chess.com"]
[Date "2021.03.02"]
[Round "7"]
[White "AttilaTurzo"]
[Black "frederiksvane"]
[Result "1-0"]
[WhiteElo "2557"]
[BlackElo "2669"]
[TimeControl "180+1"]
[EndTime "11:19:13 PST"]
[Termination "AttilaTurzo won on time"]

1. d4 {[%clk 0:02:57.9]} 1... Nf6 {[%clk 0:02:59.8]} 2. Nf3 {[%clk 0:02:57.7]}
2... g6 {[%clk 0:02:56.3]} 3. Bg5 {[%clk 0:02:57.4]} 3... Bg7 {[%clk 0:02:56.1]}
4. c3 {[%clk 0:02:57.9]} 4... O-O {[%clk 0:02:55.8]} 5. Nbd2 {[%clk 0:02:58.5]}
5... d5 {[%clk 0:02:55.5]} 6. e3 {[%clk 0:02:58.4]} 6... c5 {[%clk 0:02:54.4]}
7. Be2 {[%clk 0:02:58.5]} 7... b6 {[%clk 0:02:51.5]} 8. a4 {[%clk 0:02:57.9]}
8... Nc6 {[%clk 0:02:50.2]} 9. Qb3 {[%clk 0:02:56.1]} 9... h6 {[%clk 0:02:25.6]}
10. Bh4 {[%clk 0:02:47.3]} 10... g5 {[%clk 0:02:18.4]} 11. Bg3 {[%clk
0:02:46.8]} 11... Nh5 {[%clk 0:02:18.6]} 12. Ne5 {[%clk 0:02:36.5]} 12... Nxe5
{[%clk 0:02:10]} 13. Bxe5 {[%clk 0:02:21.1]} 13... Nf6 {[%clk 0:02:08.7]} 14. a5
{[%clk 0:02:16.4]} 14... Be6 {[%clk 0:01:41.3]} 15. O-O {[%clk 0:01:54.4]} 15...
Bf5 {[%clk 0:01:10.6]} 16. axb6 {[%clk 0:01:49.9]} 16... Qxb6 {[%clk 0:01:10]}
17. Ra6 {[%clk 0:01:29.9]} 17... Qxb3 {[%clk 0:01:07.4]} 18. Nxb3 {[%clk
0:01:30.8]} 18... cxd4 {[%clk 0:01:07.7]} 19. Nxd4 {[%clk 0:01:13.4]} 19... Bc8
{[%clk 0:01:03.9]} 20. Ra5 {[%clk 0:01:11.6]} 20... a6 {[%clk 0:00:36.8]} 21.
Rfa1 {[%clk 0:01:10.9]} 21... e6 {[%clk 0:00:37]} 22. Bxa6 {[%clk 0:01:06.7]}
22... Bxa6 {[%clk 0:00:35.8]} 23. Rxa6 {[%clk 0:01:07.6]} 23... Rxa6 {[%clk
0:00:36.4]} 24. Rxa6 {[%clk 0:01:08.5]} 24... Ne4 {[%clk 0:00:32.6]} 25. Bxg7
{[%clk 0:01:05.8]} 25... Kxg7 {[%clk 0:00:33.5]} 26. Kf1 {[%clk 0:01:02.8]}
26... Rb8 {[%clk 0:00:31.6]} 27. Ra2 {[%clk 0:00:58.8]} 27... Nd2+ {[%clk
0:00:20.1]} 28. Ke2 {[%clk 0:00:57.5]} 28... Nc4 {[%clk 0:00:20.6]} 29. b3
{[%clk 0:00:55.7]} 29... Nd6 {[%clk 0:00:20.7]} 30. Rb2 {[%clk 0:00:49.5]} 30...
Ne4 {[%clk 0:00:16.2]} 31. Kd3 {[%clk 0:00:46.1]} 31... e5 {[%clk 0:00:13.6]}
32. Nc6 {[%clk 0:00:34.9]} 32... Nc5+ {[%clk 0:00:11.1]} 33. Kc2 {[%clk
0:00:31.8]} 33... Re8 {[%clk 0:00:11.6]} 34. b4 {[%clk 0:00:31.4]} 34... Ne4
{[%clk 0:00:12]} 35. f3 {[%clk 0:00:29.6]} 35... Nd6 {[%clk 0:00:12]} 36. b5
{[%clk 0:00:29.2]} 36... Nc4 {[%clk 0:00:12.2]} 37. Rb4 {[%clk 0:00:27.8]} 37...
Nxe3+ {[%clk 0:00:11.7]} 38. Kd3 {[%clk 0:00:28.3]} 38... Nf5 {[%clk 0:00:08.9]}
39. b6 {[%clk 0:00:27.8]} 39... e4+ {[%clk 0:00:04.5]} 40. fxe4 {[%clk
0:00:24.5]} 40... dxe4+ {[%clk 0:00:05.1]} 41. Rxe4 {[%clk 0:00:21.2]} 41... Rf8
{[%clk 0:00:02.2]} 42. b7 {[%clk 0:00:19.6]} 42... Nd6 {[%clk 0:00:02.7]} 43.
Rb4 {[%clk 0:00:18.6]} 43... Nxb7 {[%clk 0:00:02.6]} 44. Rxb7 {[%clk 0:00:19.5]}
44... Kf6 {[%clk 0:00:03.1]} 45. Nd4 {[%clk 0:00:18.9]} 45... Ra8 {[%clk
0:00:02.1]} 46. Rb6+ {[%clk 0:00:17.9]} 46... Ke5 {[%clk 0:00:02.2]} 47. Rxh6
{[%clk 0:00:15.7]} 47... Ra2 {[%clk 0:00:02]} 48. g3 {[%clk 0:00:15.7]} 48... f5
{[%clk 0:00:01.6]} 49. Re6+ {[%clk 0:00:13.6]} 1-0

[Event "*** Titled Tuesday Blitz"]
[Site "Chess.com"]
[Date "2021.03.02"]
[Round "7"]
[White "NikolaGry"]
[Black "Sergey85Rodchenkov"]
[Result "0-1"]
[WhiteElo "2597"]
[BlackElo "2487"]
[TimeControl "180+1"]
[EndTime "11:19:14 PST"]
[Termination "Sergey85Rodchenkov won on time"]

1. b3 {[%clk 0:03:00.9]} 1... Nf6 {[%clk 0:02:54.2]} 2. Bb2 {[%clk 0:03:01]}
2... b6 {[%clk 0:02:54.3]} 3. c4 {[%clk 0:03:00.3]} 3... Bb7 {[%clk 0:02:54.3]}
4. Nf3 {[%clk 0:03:00.5]} 4... g6 {[%clk 0:02:53.9]} 5. Bxf6 {[%clk 0:02:51.1]}
5... exf6 {[%clk 0:02:53.5]} 6. e3 {[%clk 0:02:50.7]} 6... Bg7 {[%clk
0:02:52.3]} 7. Nc3 {[%clk 0:02:50.8]} 7... f5 {[%clk 0:02:52.4]} 8. g3 {[%clk
0:02:49.4]} 8... O-O {[%clk 0:02:51.1]} 9. Bg2 {[%clk 0:02:49.4]} 9... d6 {[%clk
0:02:49.6]} 10. d4 {[%clk 0:02:48.3]} 10... Nd7 {[%clk 0:02:49.3]} 11. O-O
{[%clk 0:02:46.1]} 11... Re8 {[%clk 0:02:49.5]} 12. Rc1 {[%clk 0:02:41.5]} 12...
h5 {[%clk 0:02:49.3]} 13. Re1 {[%clk 0:02:38]} 13... Nf6 {[%clk 0:02:48.6]} 14.
b4 {[%clk 0:02:34]} 14... a5 {[%clk 0:02:47.8]} 15. a3 {[%clk 0:02:21]} 15...
axb4 {[%clk 0:02:45]} 16. axb4 {[%clk 0:02:20.9]} 16... Ne4 {[%clk 0:02:45.7]}
17. Nxe4 {[%clk 0:02:13.4]} 17... fxe4 {[%clk 0:02:44.3]} 18. Nd2 {[%clk
0:02:12]} 18... h4 {[%clk 0:02:44]} 19. Qg4 {[%clk 0:01:30.5]} 19... hxg3 {[%clk
0:02:21.9]} 20. hxg3 {[%clk 0:01:27.8]} 20... Qe7 {[%clk 0:02:18.5]} 21. c5
{[%clk 0:01:19]} 21... bxc5 {[%clk 0:02:10.3]} 22. dxc5 {[%clk 0:01:15.9]} 22...
Ra2 {[%clk 0:02:07.7]} 23. cxd6 {[%clk 0:01:06.8]} 23... cxd6 {[%clk 0:02:04.9]}
24. Nc4 {[%clk 0:01:01.3]} 24... Bd5 {[%clk 0:01:36.9]} 25. Nb6 {[%clk
0:00:53.1]} 25... Bb7 {[%clk 0:01:31.2]} 26. Bf1 {[%clk 0:00:41.4]} 26... d5
{[%clk 0:01:25]} 27. Rc5 {[%clk 0:00:32.4]} 27... Rd8 {[%clk 0:01:14.4]} 28. Rd1
{[%clk 0:00:24.1]} 28... Qf6 {[%clk 0:01:07.8]} 29. Qf4 {[%clk 0:00:19.7]} 29...
Qxb6 {[%clk 0:01:05.5]} 30. Rc7 {[%clk 0:00:17.7]} 30... Rf8 {[%clk 0:00:58.3]}
31. Rdc1 {[%clk 0:00:17]} 31... Ra1 {[%clk 0:00:51.7]} 32. b5 {[%clk 0:00:14.7]}
32... Rxc1 {[%clk 0:00:50.5]} 33. Rxc1 {[%clk 0:00:14.7]} 33... d4 {[%clk
0:00:49.1]} 34. Qc7 {[%clk 0:00:13.4]} 34... Qxc7 {[%clk 0:00:33.5]} 35. Rxc7
{[%clk 0:00:13]} 35... Rb8 {[%clk 0:00:26.3]} 36. Bc4 {[%clk 0:00:12.5]} 36...
d3 {[%clk 0:00:25.9]} 37. Bxf7+ {[%clk 0:00:10.5]} 37... Kh7 {[%clk 0:00:24.2]}
38. Bc4 {[%clk 0:00:10.3]} 38... Kh6 {[%clk 0:00:23.5]} 39. Kf1 {[%clk
0:00:09.8]} 39... Bc8 {[%clk 0:00:20.3]} 40. f3 {[%clk 0:00:08]} 40... exf3
{[%clk 0:00:17.3]} 41. Bxd3 {[%clk 0:00:08.1]} 41... Bg4 {[%clk 0:00:17.7]} 42.
Rc6 {[%clk 0:00:07.8]} 42... Be5 {[%clk 0:00:13.6]} 43. Rxg6+ {[%clk 0:00:06.5]}
43... Kh5 {[%clk 0:00:14]} 44. Rc6 {[%clk 0:00:06.5]} 44... Bxg3 {[%clk
0:00:13.7]} 45. Bg6+ {[%clk 0:00:05.6]} 45... Kh4 {[%clk 0:00:13.9]} 46. Bd3
{[%clk 0:00:06.1]} 46... Be5 {[%clk 0:00:13.7]} 47. Rh6+ {[%clk 0:00:05.8]}
47... Kg3 {[%clk 0:00:13.6]} 48. Rg6 {[%clk 0:00:03.9]} 48... Rc8 {[%clk
0:00:13]} 49. Rc6 {[%clk 0:00:03.6]} 49... Rd8 {[%clk 0:00:12.8]} 0-1